[Event "*** Titled Tuesday Blitz"]
[Site "Chess.com"]
[Date "2020.11.24"]
[Round "9"]
[White "ChessWarrior7197"]
[Black "DenLaz"]
[Result "0-1"]
[WhiteElo "2977"]
[BlackElo "2779"]
[TimeControl "180+1"]
[EndTime "12:04:01 PST"]
[Termination "DenLaz won on time"]

1. c4 {[%clk 0:03:00.9]} 1... c6 {[%clk 0:02:59.4]} 2. Nf3 {[%clk 0:02:57.5]}
2... d5 {[%clk 0:02:59.5]} 3. g3 {[%clk 0:02:57.7]} 3... Nf6 {[%clk 0:02:59.7]}
4. Bg2 {[%clk 0:02:57.4]} 4... Bf5 {[%clk 0:03:00.1]} 5. O-O {[%clk 0:02:56.7]}
5... e6 {[%clk 0:03:00.2]} 6. d3 {[%clk 0:02:57]} 6... dxc4 {[%clk 0:02:57.6]}
7. dxc4 {[%clk 0:02:54.8]} 7... Nbd7 {[%clk 0:02:57.8]} 8. Nc3 {[%clk
0:02:48.2]} 8... h6 {[%clk 0:02:56.5]} 9. b3 {[%clk 0:02:31.4]} 9... Be7 {[%clk
0:02:54.6]} 10. Bb2 {[%clk 0:02:31.5]} 10... O-O {[%clk 0:02:55.2]} 11. Qc1
{[%clk 0:02:27.5]} 11... Qc7 {[%clk 0:02:48.6]} 12. Rd1 {[%clk 0:02:27.8]} 12...
Rad8 {[%clk 0:02:45.6]} 13. Ba3 {[%clk 0:02:27.8]} 13... Bxa3 {[%clk 0:02:18.7]}
14. Qxa3 {[%clk 0:02:28.7]} 14... a6 {[%clk 0:02:15.6]} 15. c5 {[%clk
0:02:15.3]} 15... Ne4 {[%clk 0:02:13.1]} 16. Nxe4 {[%clk 0:02:10.8]} 16... Bxe4
{[%clk 0:02:13.8]} 17. Rd6 {[%clk 0:02:11.2]} 17... Nf6 {[%clk 0:01:55.7]} 18.
Rad1 {[%clk 0:02:09.7]} 18... Bd5 {[%clk 0:01:54.3]} 19. Nd2 {[%clk 0:01:27.9]}
19... Bxg2 {[%clk 0:01:37.3]} 20. Kxg2 {[%clk 0:01:28.8]} 20... Ne8 {[%clk
0:01:31.6]} 21. Nc4 {[%clk 0:01:28.5]} 21... Nxd6 {[%clk 0:01:26.3]} 22. cxd6
{[%clk 0:01:29.4]} 22... Qb8 {[%clk 0:01:26.6]} 23. e4 {[%clk 0:01:28.6]} 23...
b5 {[%clk 0:01:21.7]} 24. Ne5 {[%clk 0:01:19.3]} 24... b4 {[%clk 0:01:10.3]} 25.
Qxa6 {[%clk 0:01:18.9]} 25... Rxd6 {[%clk 0:01:09.5]} 26. Nxc6 {[%clk
0:01:05.6]} 26... Rxd1 {[%clk 0:00:55.1]} 27. Nxb8 {[%clk 0:01:05.5]} 27... Rxb8
{[%clk 0:00:56]} 28. Qa7 {[%clk 0:01:04.3]} 28... Rdd8 {[%clk 0:00:50.7]} 29. g4
{[%clk 0:00:48.4]} 29... Ra8 {[%clk 0:00:44.3]} 30. Qc5 {[%clk 0:00:48.3]} 30...
Rdb8 {[%clk 0:00:37.4]} 31. Qc2 {[%clk 0:00:42.7]} 31... Ra7 {[%clk 0:00:32.9]}
32. Qd2 {[%clk 0:00:42.2]} 32... Rab7 {[%clk 0:00:27.1]} 33. h4 {[%clk
0:00:41.4]} 33... Ra8 {[%clk 0:00:22.5]} 34. Kg3 {[%clk 0:00:38.9]} 34... Rba7
{[%clk 0:00:20.6]} 35. Qxb4 {[%clk 0:00:38.5]} 35... Rxa2 {[%clk 0:00:21.3]} 36.
f3 {[%clk 0:00:35.9]} 36... Rb2 {[%clk 0:00:20.3]} 37. Qb7 {[%clk 0:00:32.6]}
37... Rd8 {[%clk 0:00:20.4]} 38. b4 {[%clk 0:00:27.8]} 38... Rb3 {[%clk
0:00:19.3]} 39. Kf4 {[%clk 0:00:18.3]} 39... Rdd3 {[%clk 0:00:15.5]} 40. Ke5
{[%clk 0:00:18.2]} 40... Rxf3 {[%clk 0:00:15.5]} 41. g5 {[%clk 0:00:18]} 41...
hxg5 {[%clk 0:00:15.1]} 42. hxg5 {[%clk 0:00:18.9]} 42... Kh7 {[%clk 0:00:14.9]}
43. b5 {[%clk 0:00:18.2]} 43... Kg6 {[%clk 0:00:15.3]} 44. b6 {[%clk 0:00:18.6]}
44... Rb5+ {[%clk 0:00:15.4]} 45. Kd4 {[%clk 0:00:16]} 45... Rfb3 {[%clk
0:00:15.1]} 46. Qe7 {[%clk 0:00:06.6]} 46... Rxb6 {[%clk 0:00:14.4]} 47. Qe8
{[%clk 0:00:05.8]} 47... R6b4+ {[%clk 0:00:12.4]} 48. Ke5 {[%clk 0:00:02.6]}
48... Re3 {[%clk 0:00:09]} 49. Kd6 {[%clk 0:00:02.4]} 49... Rexe4 {[%clk
0:00:09]} 50. Ke7 {[%clk 0:00:01.4]} 50... Rb7+ {[%clk 0:00:08.5]} 51. Kd6
{[%clk 0:00:02]} 51... Rd4+ {[%clk 0:00:08.2]} 0-1

[Event "*** Titled Tuesday Blitz"]
[Site "Chess.com"]
[Date "2020.11.24"]
[Round "9"]
[White "Artyom_ChessMate"]
[Black "RestartingChess"]
[Result "1-0"]
[WhiteElo "2524"]
[BlackElo "2539"]
[TimeControl "180+1"]
[EndTime "12:04:02 PST"]
[Termination "Artyom_ChessMate won by checkmate"]

1. e4 {[%clk 0:03:00.9]} 1... Nf6 {[%clk 0:02:56.1]} 2. e5 {[%clk 0:03:01.2]}
2... Nd5 {[%clk 0:02:56.6]} 3. d4 {[%clk 0:03:02.1]} 3... d6 {[%clk 0:02:57.1]}
4. Nf3 {[%clk 0:03:01.9]} 4... g6 {[%clk 0:02:57.3]} 5. Bc4 {[%clk 0:03:01.3]}
5... Nb6 {[%clk 0:02:57.9]} 6. Bb3 {[%clk 0:02:59.7]} 6... Bg7 {[%clk
0:02:58.6]} 7. Ng5 {[%clk 0:02:55.7]} 7... d5 {[%clk 0:02:59]} 8. f4 {[%clk
0:02:51.8]} 8... h6 {[%clk 0:02:59.2]} 9. Nf3 {[%clk 0:02:52]} 9... Bg4 {[%clk
0:02:59.9]} 10. c3 {[%clk 0:02:52.1]} 10... e6 {[%clk 0:03:00.2]} 11. O-O {[%clk
0:02:51.4]} 11... O-O {[%clk 0:02:59.5]} 12. h3 {[%clk 0:02:51.9]} 12... Bxf3
{[%clk 0:02:59.6]} 13. Qxf3 {[%clk 0:02:52.8]} 13... N8d7 {[%clk 0:02:59.4]} 14.
Be3 {[%clk 0:02:53]} 14... Rc8 {[%clk 0:02:59.2]} 15. a4 {[%clk 0:02:51.7]}
15... a5 {[%clk 0:02:59.2]} 16. Na3 {[%clk 0:02:50.2]} 16... c5 {[%clk
0:02:59.5]} 17. Nb5 {[%clk 0:02:49.4]} 17... cxd4 {[%clk 0:02:59.9]} 18. cxd4
{[%clk 0:02:34]} 18... Nc4 {[%clk 0:03:00.2]} 19. Bxc4 {[%clk 0:02:30.5]} 19...
Rxc4 {[%clk 0:03:01.1]} 20. Rfc1 {[%clk 0:02:17.6]} 20... Rb4 {[%clk 0:02:25]}
21. Qe2 {[%clk 0:02:02.2]} 21... Nb6 {[%clk 0:02:23.6]} 22. Nd6 {[%clk
0:01:58.6]} 22... Qd7 {[%clk 0:01:56.9]} 23. Rc5 {[%clk 0:01:03.6]} 23... Nxa4
{[%clk 0:01:29.4]} 24. Rxa5 {[%clk 0:00:21.3]} 24... Nxb2 {[%clk 0:01:03.8]} 25.
Qd2 {[%clk 0:00:16.2]} 25... Rb6 {[%clk 0:01:03.6]} 26. Rc1 {[%clk 0:00:11.8]}
26... Rxd6 {[%clk 0:00:51.2]} 27. Qxb2 {[%clk 0:00:07.3]} 27... Rc6 {[%clk
0:00:50.6]} 28. Rb1 {[%clk 0:00:07.5]} 28... Rb8 {[%clk 0:00:46.8]} 29. Qb5
{[%clk 0:00:05.1]} 29... Bf8 {[%clk 0:00:42.3]} 30. Ra7 {[%clk 0:00:04.7]} 30...
Rc1+ {[%clk 0:00:41.4]} 31. Bxc1 {[%clk 0:00:03.5]} 31... Qd8 {[%clk 0:00:40]}
32. Rxb7 {[%clk 0:00:03.7]} 32... Rxb7 {[%clk 0:00:40.6]} 33. Qxb7 {[%clk
0:00:04.6]} 33... Qh4 {[%clk 0:00:41.3]} 34. Be3 {[%clk 0:00:04.7]} 34... Qg3
{[%clk 0:00:41.6]} 35. Qb3 {[%clk 0:00:05]} 35... Kh7 {[%clk 0:00:36.6]} 36. Qc3
{[%clk 0:00:05.1]} 36... Be7 {[%clk 0:00:35.7]} 37. Qe1 {[%clk 0:00:05.2]} 37...
Bh4 {[%clk 0:00:28.8]} 38. Qxg3 {[%clk 0:00:05.3]} 38... Bxg3 {[%clk 0:00:29.7]}
39. Rb7 {[%clk 0:00:05.9]} 39... Kg7 {[%clk 0:00:29.8]} 40. Kf1 {[%clk
0:00:06.4]} 40... g5 {[%clk 0:00:29.5]} 41. fxg5 {[%clk 0:00:07.3]} 41... hxg5
{[%clk 0:00:30]} 42. Bxg5 {[%clk 0:00:07.8]} 42... Kg6 {[%clk 0:00:30.7]} 43.
Bf6 {[%clk 0:00:08.7]} 43... Bf4 {[%clk 0:00:30.4]} 44. Ke2 {[%clk 0:00:09.2]}
44... Bg3 {[%clk 0:00:30.6]} 45. Kd3 {[%clk 0:00:09.7]} 45... Be1 {[%clk
0:00:31.4]} 46. Rb8 {[%clk 0:00:10.1]} 46... Kf5 {[%clk 0:00:31.4]} 47. Rg8
{[%clk 0:00:10.5]} 47... Bf2 {[%clk 0:00:28]} 48. g4+ {[%clk 0:00:11.4]} 48...
Kf4 {[%clk 0:00:28.3]} 49. h4 {[%clk 0:00:11.8]} 49... Be3 {[%clk 0:00:24.6]}
50. h5 {[%clk 0:00:12]} 50... Kf3 {[%clk 0:00:24.9]} 51. g5 {[%clk 0:00:12]}
51... Bf2 {[%clk 0:00:21]} 52. h6 {[%clk 0:00:12.3]} 52... Kg4 {[%clk
0:00:19.5]} 53. h7 {[%clk 0:00:12.6]} 53... Kf5 {[%clk 0:00:19.1]} 54. h8=Q
{[%clk 0:00:12.7]} 54... Bh4 {[%clk 0:00:17.3]} 55. Qh7+ {[%clk 0:00:09.1]}
55... Kg4 {[%clk 0:00:14.7]} 56. Qxh4+ {[%clk 0:00:08.6]} 56... Kxh4 {[%clk
0:00:15]} 57. g6+ {[%clk 0:00:09.5]} 57... Kh5 {[%clk 0:00:15.5]} 58. gxf7
{[%clk 0:00:07.8]} 58... Kh6 {[%clk 0:00:16]} 59. f8=Q+ {[%clk 0:00:07.9]} 59...
Kh5 {[%clk 0:00:16.9]} 60. Rh8+ {[%clk 0:00:07.6]} 60... Kg4 {[%clk 0:00:16.3]}
61. Qg7+ {[%clk 0:00:07.8]} 61... Kf5 {[%clk 0:00:17.2]} 62. Rh5+ {[%clk
0:00:07.5]} 62... Kf4 {[%clk 0:00:17.2]} 63. Qg5+ {[%clk 0:00:07.8]} 63... Kf3
{[%clk 0:00:17.3]} 64. Rh3+ {[%clk 0:00:07.9]} 64... Kf2 {[%clk 0:00:18.2]} 65.
Qg3+ {[%clk 0:00:07.9]} 65... Kf1 {[%clk 0:00:18.7]} 66. Rh1# {[%clk 0:00:08.8]}
1-0

[Event "*** Titled Tuesday Blitz"]
[Site "Chess.com"]
[Date "2020.11.24"]
[Round "9"]
[White "Fandorine"]
[Black "Evgeny81"]
[Result "1-0"]
[WhiteElo "2871"]
[BlackElo "2723"]
[TimeControl "180+1"]
[EndTime "12:04:03 PST"]
[Termination "Fandorine won by resignation"]

1. f4 {[%clk 0:02:56.7]} 1... d5 {[%clk 0:02:59.5]} 2. g3 {[%clk 0:02:56.3]}
2... c5 {[%clk 0:02:59.7]} 3. Bg2 {[%clk 0:02:56.6]} 3... g6 {[%clk 0:02:59.9]}
4. Nf3 {[%clk 0:02:57.5]} 4... Bg7 {[%clk 0:03:00.1]} 5. O-O {[%clk 0:02:58.4]}
5... Nf6 {[%clk 0:03:00.6]} 6. d3 {[%clk 0:02:59]} 6... O-O {[%clk 0:03:01.1]}
7. Qe1 {[%clk 0:02:59.7]} 7... d4 {[%clk 0:03:00.1]} 8. Na3 {[%clk 0:03:00.3]}
8... Nc6 {[%clk 0:02:58.2]} 9. Bd2 {[%clk 0:03:00.8]} 9... Be6 {[%clk
0:02:57.4]} 10. c3 {[%clk 0:03:00.3]} 10... Rc8 {[%clk 0:02:53.8]} 11. Kh1
{[%clk 0:02:58.7]} 11... a6 {[%clk 0:02:47.4]} 12. Nc2 {[%clk 0:02:49.9]} 12...
Qb6 {[%clk 0:02:43]} 13. b3 {[%clk 0:02:46.1]} 13... Rfd8 {[%clk 0:02:32.9]} 14.
c4 {[%clk 0:02:46]} 14... Qc7 {[%clk 0:02:25.5]} 15. b4 {[%clk 0:02:45]} 15...
b6 {[%clk 0:02:25.8]} 16. Rb1 {[%clk 0:02:42.9]} 16... h6 {[%clk 0:02:18.8]} 17.
a3 {[%clk 0:02:42.6]} 17... Bf5 {[%clk 0:02:08.9]} 18. Nh4 {[%clk 0:02:41.1]}
18... Bd7 {[%clk 0:02:06.2]} 19. bxc5 {[%clk 0:02:37.4]} 19... bxc5 {[%clk
0:02:05.9]} 20. Na1 {[%clk 0:02:38.3]} 20... Rb8 {[%clk 0:01:55.7]} 21. Nb3
{[%clk 0:02:37.8]} 21... Qd6 {[%clk 0:01:52.8]} 22. Nf3 {[%clk 0:02:35.6]} 22...
Ng4 {[%clk 0:01:40.3]} 23. h3 {[%clk 0:02:18.2]} 23... Ne3 {[%clk 0:01:39.5]}
24. Bxe3 {[%clk 0:02:18.4]} 24... dxe3 {[%clk 0:01:40.4]} 25. Qc1 {[%clk
0:02:19]} 25... Nd4 {[%clk 0:01:39.1]} 26. Nfxd4 {[%clk 0:02:13.8]} 26... cxd4
{[%clk 0:01:39.4]} 27. c5 {[%clk 0:02:12.3]} 27... Qc7 {[%clk 0:01:38.5]} 28. c6
{[%clk 0:02:12.4]} 28... Bc8 {[%clk 0:01:32.4]} 29. Nc5 {[%clk 0:02:10.9]} 29...
Rxb1 {[%clk 0:01:20.9]} 30. Qxb1 {[%clk 0:02:11.8]} 30... Rd6 {[%clk 0:01:20.9]}
31. Rc1 {[%clk 0:02:07.4]} 31... Rxc6 {[%clk 0:00:56.1]} 32. Bxc6 {[%clk
0:02:05.7]} 32... Qxc6+ {[%clk 0:00:56.5]} 33. Ne4 {[%clk 0:02:06.3]} 33... Qa8
{[%clk 0:00:56.9]} 34. Qc2 {[%clk 0:01:58]} 34... Bxh3 {[%clk 0:00:49.6]} 35.
Qc6 {[%clk 0:01:58.3]} 35... Qb8 {[%clk 0:00:37.4]} 36. a4 {[%clk 0:01:27.7]}
36... Bg4 {[%clk 0:00:36.5]} 37. Qc2 {[%clk 0:01:15.3]} 37... Qb4 {[%clk
0:00:36.3]} 38. Kg1 {[%clk 0:01:15.2]} 38... Qa5 {[%clk 0:00:34.3]} 39. Nc5
{[%clk 0:00:56.7]} 39... Qd8 {[%clk 0:00:27.3]} 40. Qa2 {[%clk 0:00:24.5]} 40...
e5 {[%clk 0:00:23.4]} 41. fxe5 {[%clk 0:00:19.8]} 41... Bxe5 {[%clk 0:00:19.1]}
42. Ne4 {[%clk 0:00:20.3]} 42... Be6 {[%clk 0:00:17.5]} 43. Qc2 {[%clk
0:00:18.5]} 43... Qa5 {[%clk 0:00:16.4]} 44. Qc5 {[%clk 0:00:18]} 44... Qxc5
{[%clk 0:00:11.1]} 45. Rxc5 {[%clk 0:00:18.8]} 45... f6 {[%clk 0:00:09.2]} 46.
Rc6 {[%clk 0:00:16.7]} 46... Bg4 {[%clk 0:00:08.9]} 47. Kf1 {[%clk 0:00:14.7]}
47... Bh3+ {[%clk 0:00:08.3]} 48. Kg1 {[%clk 0:00:11.5]} 48... Bg4 {[%clk
0:00:07.8]} 49. Nxf6+ {[%clk 0:00:09.6]} 49... Bxf6 {[%clk 0:00:07.3]} 50. Rxf6
{[%clk 0:00:10.5]} 50... Bxe2 {[%clk 0:00:07.9]} 51. Rxg6+ {[%clk 0:00:10.1]}
51... Kf7 {[%clk 0:00:07.6]} 52. Rd6 {[%clk 0:00:11]} 52... Bxd3 {[%clk
0:00:07.7]} 53. Rxd4 {[%clk 0:00:10.7]} 53... Bf5 {[%clk 0:00:06.4]} 54. Kf1
{[%clk 0:00:09.8]} 54... h5 {[%clk 0:00:04.6]} 55. Ke2 {[%clk 0:00:10.1]} 1-0

[Event "*** Titled Tuesday Blitz"]
[Site "Chess.com"]
[Date "2020.11.24"]
[Round "9"]
[White "VladaSviridova"]
[Black "Bastiandash"]
[Result "0-1"]
[WhiteElo "2279"]
[BlackElo "2411"]
[TimeControl "180+1"]
[EndTime "12:04:09 PST"]
[Termination "Bastiandash won on time"]

1. d4 {[%clk 0:03:00.9]} 1... Nf6 {[%clk 0:03:00.1]} 2. c4 {[%clk 0:03:01.1]}
2... e6 {[%clk 0:02:59.6]} 3. Nf3 {[%clk 0:03:00.6]} 3... Bb4+ {[%clk 0:03:00]}
4. Bd2 {[%clk 0:03:00.7]} 4... a5 {[%clk 0:02:57.4]} 5. g3 {[%clk 0:03:00]} 5...
O-O {[%clk 0:02:56.2]} 6. Bg2 {[%clk 0:03:00.2]} 6... d5 {[%clk 0:02:56.8]} 7.
Qc2 {[%clk 0:03:00.4]} 7... c5 {[%clk 0:02:56.4]} 8. cxd5 {[%clk 0:02:18.4]}
8... cxd4 {[%clk 0:02:54.2]} 9. Nxd4 {[%clk 0:02:08.2]} 9... Nxd5 {[%clk
0:02:38.3]} 10. O-O {[%clk 0:01:59.4]} 10... Bxd2 {[%clk 0:02:20.5]} 11. Qxd2
{[%clk 0:01:45]} 11... Qb6 {[%clk 0:02:12.1]} 12. Nc3 {[%clk 0:01:27.4]} 12...
Rd8 {[%clk 0:02:08.6]} 13. Nxd5 {[%clk 0:01:24.9]} 13... exd5 {[%clk 0:02:08.2]}
14. Rac1 {[%clk 0:01:23.6]} 14... Nc6 {[%clk 0:01:59.3]} 15. e3 {[%clk
0:01:16.2]} 15... Bg4 {[%clk 0:01:50.6]} 16. h3 {[%clk 0:01:14.1]} 16... Bd7
{[%clk 0:01:46.6]} 17. Nxc6 {[%clk 0:01:11]} 17... Bxc6 {[%clk 0:01:47.5]} 18.
Qd4 {[%clk 0:00:57.4]} 18... Qxd4 {[%clk 0:01:39.8]} 19. exd4 {[%clk 0:00:57.5]}
19... Re8 {[%clk 0:01:40.7]} 20. Rfe1 {[%clk 0:00:57.5]} 20... Kf8 {[%clk
0:01:40.1]} 21. f4 {[%clk 0:00:54.8]} 21... a4 {[%clk 0:01:35.2]} 22. a3 {[%clk
0:00:53.9]} 22... Ra5 {[%clk 0:01:33.5]} 23. Kf2 {[%clk 0:00:51.7]} 23... Rb5
{[%clk 0:01:31.1]} 24. Rxe8+ {[%clk 0:00:47.2]} 24... Kxe8 {[%clk 0:01:30.8]}
25. Rc2 {[%clk 0:00:47.3]} 25... Rb3 {[%clk 0:01:30.6]} 26. g4 {[%clk 0:00:38]}
26... Rd3 {[%clk 0:01:27.7]} 27. Re2+ {[%clk 0:00:28.2]} 27... Kd7 {[%clk
0:01:25.9]} 28. g5 {[%clk 0:00:25.2]} 28... Rxd4 {[%clk 0:01:24.2]} 29. Kg3
{[%clk 0:00:25.3]} 29... Rd3+ {[%clk 0:01:23.1]} 30. Kg4 {[%clk 0:00:24.7]}
30... g6 {[%clk 0:01:21.3]} 31. f5 {[%clk 0:00:23.2]} 31... Kd6 {[%clk
0:01:21.1]} 32. fxg6 {[%clk 0:00:18.2]} 32... hxg6 {[%clk 0:01:22]} 33. h4
{[%clk 0:00:14.3]} 33... Bd7+ {[%clk 0:01:13.1]} 34. Kf4 {[%clk 0:00:14.3]}
34... Bf5 {[%clk 0:01:14]} 35. Bf3 {[%clk 0:00:13.6]} 35... Rd4+ {[%clk
0:01:10.8]} 36. Kg3 {[%clk 0:00:12.7]} 36... Rd3 {[%clk 0:01:10.4]} 37. Kf4
{[%clk 0:00:12.4]} 37... Rb3 {[%clk 0:01:06.6]} 38. h5 {[%clk 0:00:12.4]} 38...
gxh5 {[%clk 0:01:07.1]} 39. Bxh5 {[%clk 0:00:10.8]} 39... Be6 {[%clk 0:01:04.1]}
40. Bf3 {[%clk 0:00:10]} 40... b5 {[%clk 0:00:54.6]} 41. Rd2 {[%clk 0:00:10.3]}
41... b4 {[%clk 0:00:48]} 42. axb4 {[%clk 0:00:10.4]} 42... Rxb4+ {[%clk
0:00:48.3]} 43. Ke3 {[%clk 0:00:10.1]} 43... Ke5 {[%clk 0:00:48.3]} 44. Kf2
{[%clk 0:00:10]} 44... Rb3 {[%clk 0:00:46.3]} 45. Re2+ {[%clk 0:00:09.9]} 45...
Kf5 {[%clk 0:00:46.3]} 46. g6 {[%clk 0:00:07.8]} 46... fxg6 {[%clk 0:00:45.7]}
47. Kg2 {[%clk 0:00:06]} 47... d4 {[%clk 0:00:37.2]} 48. Be4+ {[%clk 0:00:04.5]}
48... Kg5 {[%clk 0:00:33.9]} 49. Bc6 {[%clk 0:00:03.9]} 49... Bf5 {[%clk
0:00:31.3]} 50. Bxa4 {[%clk 0:00:03.4]} 50... Rb4 {[%clk 0:00:28.3]} 51. Bc6
{[%clk 0:00:03.6]} 51... Rb3 {[%clk 0:00:25.5]} 52. Rd2 {[%clk 0:00:03.6]} 52...
d3 {[%clk 0:00:23.9]} 53. Bd5 {[%clk 0:00:03.6]} 53... Rb8 {[%clk 0:00:22.1]}
54. Bc4 {[%clk 0:00:03.6]} 54... Rd8 {[%clk 0:00:22.6]} 55. b3 {[%clk
0:00:03.3]} 55... Kf4 {[%clk 0:00:23.1]} 56. Kf2 {[%clk 0:00:03.4]} 56... g5
{[%clk 0:00:23.4]} 57. b4 {[%clk 0:00:03.5]} 57... g4 {[%clk 0:00:23.7]} 58. b5
{[%clk 0:00:03.6]} 58... g3+ {[%clk 0:00:24.1]} 59. Kg1 {[%clk 0:00:03.8]} 59...
Ke3 {[%clk 0:00:24.7]} 60. Rd1 {[%clk 0:00:03.8]} 60... d2 {[%clk 0:00:24]} 61.
b6 {[%clk 0:00:02.9]} 61... Bg4 {[%clk 0:00:23.5]} 62. Ra1 {[%clk 0:00:01.8]}
62... d1=Q+ {[%clk 0:00:23]} 63. Rxd1 {[%clk 0:00:01.7]} 63... Bxd1 {[%clk
0:00:23.9]} 0-1

[Event "*** Titled Tuesday Blitz"]
[Site "Chess.com"]
[Date "2020.11.24"]
[Round "9"]
[White "KetiTsatsalashvili"]
[Black "ChainsOfFantasia"]
[Result "0-1"]
[WhiteElo "2308"]
[BlackElo "2483"]
[TimeControl "180+1"]
[EndTime "12:04:10 PST"]
[Termination "ChainsOfFantasia won by resignation"]

1. Nf3 {[%clk 0:03:00.9]} 1... Nf6 {[%clk 0:02:50.7]} 2. d4 {[%clk 0:02:59.2]}
2... d5 {[%clk 0:02:49.6]} 3. Bf4 {[%clk 0:02:58.8]} 3... c5 {[%clk 0:02:49.6]}
4. e3 {[%clk 0:02:58.2]} 4... Nc6 {[%clk 0:02:50.1]} 5. c3 {[%clk 0:02:58.3]}
5... Qb6 {[%clk 0:02:49.8]} 6. Qb3 {[%clk 0:02:56.8]} 6... c4 {[%clk 0:02:49.3]}
7. Qc2 {[%clk 0:02:46.1]} 7... Bf5 {[%clk 0:02:48.8]} 8. Qc1 {[%clk 0:02:39.3]}
8... h6 {[%clk 0:02:49]} 9. h3 {[%clk 0:02:36.9]} 9... e6 {[%clk 0:02:48.5]} 10.
Be2 {[%clk 0:02:36]} 10... Be7 {[%clk 0:02:48.7]} 11. O-O {[%clk 0:02:35.7]}
11... O-O {[%clk 0:02:48.6]} 12. Nbd2 {[%clk 0:02:35.6]} 12... Qd8 {[%clk
0:02:48.2]} 13. Ne5 {[%clk 0:02:30.1]} 13... Rc8 {[%clk 0:02:39.3]} 14. Bd1
{[%clk 0:02:24.5]} 14... b5 {[%clk 0:02:38]} 15. a3 {[%clk 0:02:24.1]} 15... a5
{[%clk 0:02:37.3]} 16. Bc2 {[%clk 0:02:24.4]} 16... b4 {[%clk 0:02:15.7]} 17.
axb4 {[%clk 0:02:21.1]} 17... axb4 {[%clk 0:02:15.3]} 18. Bxf5 {[%clk
0:02:17.4]} 18... exf5 {[%clk 0:02:15.3]} 19. Ra6 {[%clk 0:02:14.2]} 19... Nxe5
{[%clk 0:02:12.2]} 20. Bxe5 {[%clk 0:02:10.8]} 20... Ne4 {[%clk 0:01:59.4]} 21.
f3 {[%clk 0:02:05.3]} 21... Nxd2 {[%clk 0:01:52.4]} 22. Qxd2 {[%clk 0:02:06.2]}
22... Qd7 {[%clk 0:01:46]} 23. Rfa1 {[%clk 0:02:01.9]} 23... bxc3 {[%clk
0:01:39.7]} 24. bxc3 {[%clk 0:02:01.5]} 24... Rfe8 {[%clk 0:01:33.4]} 25. Qf2
{[%clk 0:01:48.9]} 25... Bf8 {[%clk 0:01:19.2]} 26. Qg3 {[%clk 0:01:43.3]} 26...
Re6 {[%clk 0:01:17.5]} 27. Ra7 {[%clk 0:01:33.8]} 27... Qb5 {[%clk 0:01:11.1]}
28. Qf4 {[%clk 0:01:24.3]} 28... g6 {[%clk 0:00:57.6]} 29. e4 {[%clk 0:01:18.7]}
29... dxe4 {[%clk 0:00:50.3]} 30. fxe4 {[%clk 0:01:18.4]} 30... Rxe5 {[%clk
0:00:50.6]} 31. dxe5 {[%clk 0:01:15.7]} 31... Bc5+ {[%clk 0:00:50.9]} 32. Kh2
{[%clk 0:01:10.5]} 32... Bxa7 {[%clk 0:00:51.3]} 33. Rxa7 {[%clk 0:01:10.3]}
33... Re8 {[%clk 0:00:45.5]} 34. exf5 {[%clk 0:00:49.4]} 34... Qxe5 {[%clk
0:00:45.9]} 35. Qxe5 {[%clk 0:00:49.4]} 35... Rxe5 {[%clk 0:00:46.3]} 36. fxg6
{[%clk 0:00:49.8]} 36... fxg6 {[%clk 0:00:47]} 37. Rc7 {[%clk 0:00:49.9]} 37...
Re4 {[%clk 0:00:45.8]} 38. Kg1 {[%clk 0:00:45.2]} 38... g5 {[%clk 0:00:43.2]}
39. Kf2 {[%clk 0:00:43.9]} 39... g4 {[%clk 0:00:42.1]} 40. hxg4 {[%clk
0:00:41.5]} 40... Rxg4 {[%clk 0:00:43]} 41. Kf3 {[%clk 0:00:41.7]} 41... h5
{[%clk 0:00:43.4]} 42. Rc5 {[%clk 0:00:39.5]} 42... Rh4 {[%clk 0:00:34.4]} 43.
g3 {[%clk 0:00:38.1]} 43... Rh1 {[%clk 0:00:31.4]} 44. Rxc4 {[%clk 0:00:36.7]}
44... Kf7 {[%clk 0:00:31.5]} 45. Kf4 {[%clk 0:00:35.1]} 45... h4 {[%clk
0:00:28.7]} 46. g4 {[%clk 0:00:27.7]} 46... Rf1+ {[%clk 0:00:17.3]} 47. Kg5
{[%clk 0:00:27.7]} 47... h3 {[%clk 0:00:17.6]} 48. Rc7+ {[%clk 0:00:27.1]} 48...
Kg8 {[%clk 0:00:16]} 49. Rc8+ {[%clk 0:00:24.1]} 49... Rf8 {[%clk 0:00:14.8]}
50. Rc6 {[%clk 0:00:24.1]} 50... Rf7 {[%clk 0:00:12.8]} 51. Rc8+ {[%clk
0:00:10.3]} 51... Kg7 {[%clk 0:00:12]} 52. Rc6 {[%clk 0:00:10.4]} 52... Kg8
{[%clk 0:00:10.1]} 53. Rc8+ {[%clk 0:00:09.3]} 53... Kh7 {[%clk 0:00:08]} 54.
Rc6 {[%clk 0:00:09]} 54... Rg7+ {[%clk 0:00:06.3]} 55. Kh5 {[%clk 0:00:06.7]}
55... h2 {[%clk 0:00:06.3]} 56. Rh6+ {[%clk 0:00:06.5]} 56... Kg8 {[%clk
0:00:05.8]} 57. g5 {[%clk 0:00:05.7]} 57... h1=Q+ {[%clk 0:00:05.9]} 58. Kg4
{[%clk 0:00:05.9]} 58... Qg2+ {[%clk 0:00:06.4]} 59. Kf5 {[%clk 0:00:05.8]}
59... Qxg5+ {[%clk 0:00:07.3]} 0-1